bitfinex/quotes_SOLUSD_20260224
["timestamp","ask_amount","ask_price","bid_price","bid_amount"]
[1771955712779,2.75834976,78.051,78.02,0.1]
[1771955714497,1.30747707,78.033,78.02,0.1]
[1771955716475,2.75834976,78.034,78.02,0.1]
[1771955719993,2.75834976,78.05,78.021,0.16595905]
[1771955722389,12.81246396,78.049,78.021,0.16595905]
[1771955722686,2.75834976,78.048,78.021,0.16595905]
[1771955724889,12.81279229,78.047,78.021,0.16595905]
[1771955725097,2.75834976,78.046,78.021,0.16595905]
[1771955727490,12.81312063,78.045,78.02,0.1]
[1771955727690,2.75834976,78.044,78.02,0.1]
[1771955728279,2.75834976,78.044,78.02,0.29168067]
[1771955728482,2.75834976,78.044,78.021,0.19168067]
[1771955728878,2.75834976,78.044,78.02,0.1]
[1771955729766,2.75834976,78.042,78.02,0.1]
[1771955731087,2.75834976,78.042,78.021,0.19891583]
[1771955731311,32.02488573,78.065,78.022,2.78271971]
[1771955731791,5.55582573,78.07,78.024,2.78271971]
[1771955732491,5.55582573,78.07,78.02,0.1]
[1771955732792,5.55582573,78.06,78.02,0.1]
[1771955733290,2.71916033,78.059,78.02,0.1]
[1771955733490,2.71916033,78.059,78.02,2.88271971]
[1771955735281,2.71916033,78.057,78.022,2.78271971]
[1771955737795,2.71916033,78.055,78.024,2.78271971]
[1771955739702,2.71916033,78.053,78.024,2.78271971]
[1771955740581,2.71916033,78.046,78.024,2.78271971]
[1771955741492,0.2,78.037,78.024,2.78271971]
[1771955743297,15.53375872,78.036,78.02,2.88271971]
[1771955743494,2.71916033,78.036,78.02,2.88271971]
[1771955744208,0.2,78.037,78.02,2.88271971]
[1771955744593,0.2,78.037,78.02,15.69987423]
[1771955744793,0.2,78.037,78.021,2.78271971]
[1771955746106,2.91916033,78.037,78.021,2.78271971]
[1771955746805,2.91916033,78.037,78.021,15.59961941]
[1771955747595,2.91916033,78.037,78.022,2.78271971]
[1771955748101,2.91916033,78.037,78.02,2.88271971]
[1771955748304,2.91916033,78.037,77.935,21.43246454]
[1771955748305,2.71916033,78.035,77.999,2.78271971]
[1771955750604,2.71916033,78.033,77.999,2.78271971]
[1771955753102,2.71916033,78.031,77.994,12.82141629]
[1771955753307,2.71916033,78.031,77.995,2.78271971]
[1771955755613,2.83643053,78.029,77.997,2.80846444]
[1771955756623,2.83643053,78.022,77.997,2.80846444]
[1771955757519,0.2,78.013,77.997,2.80846444]
[1771955758904,3.03643053,78.033,77.999,2.80846444]
[1771955759219,2.83643053,78.031,78.001,2.80846444]
[1771955760522,2.83643053,78.029,78.001,2.80846444]
[1771955761403,2.83643053,78.029,78.003,2.80846444]
[1771955761821,0.2,78.033,78.003,2.80846444]
[1771955762424,12.81115082,78.057,78.004,2.80846444]
[1771955762623,44.83213567,78.069,78.007,2.80846444]
[1771955763626,5.55582573,78.06,78.007,2.80846444]
[1771955763814,2.83643053,78.059,78.007,2.80846444]
[1771955764833,2.83643053,78.057,78.009,2.80846444]
[1771955768831,2.83643053,78.055,78.012,2.80846444]
[1771955773448,2.83643053,78.053,78.014,2.80846444]
[1771955774556,2.83643053,78.039,77.992,12.82182787]
[1771955774845,2.83643053,78.029,77.992,12.82182787]
[1771955775638,5.55582573,78.04,77.974,16.51862176]
[1771955775639,2.83643053,78.027,77.974,16.51862176]
[1771955775836,2.83643053,78.027,77.974,44.88675711]
[1771955776036,2.83643053,78.027,77.977,3.69383402]
[1771955776548,2.83643053,78.027,77.991,2.74936131]
[1771955778644,2.83643053,78.025,77.993,2.75935053]
[1771955780625,2.83643053,78.025,77.995,2.76910006]
[1771955784047,2.83643053,78.025,77.997,2.68935908]
[1771955785966,2.83643053,78.025,77.999,2.74435623]
[1771955787241,2.68138059,78.024,77.999,2.74435623]
[1771955791138,2.68138059,78.024,78.001,2.74435623]
[1771955792248,2.68138059,78.024,78.002,12.82018409]
[1771955792560,2.68138059,78.024,78.002,15.56454032]
[1771955792763,2.68138059,78.024,78.003,2.74435623]
[1771955793364,2.68138059,78.03,78.003,2.74435623]
[1771955793552,2.68138059,78.029,78.003,2.74435623]
[1771955794459,2.68138059,78.029,78.005,2.74435623]
[1771955795060,2.68138059,78.027,78.005,2.74435623]
[1771955795272,32.03323465,78.044,78.006,2.74435623]
[1771955795456,12.81344899,78.043,78.006,2.74435623]
[1771955796557,12.80934569,78.068,78.008,2.74435623]
[1771955796965,44.83270993,78.068,78.008,2.74435623]
[1771955797351,2.68138059,78.067,78.008,2.74435623]
[1771955798649,2.68138059,78.065,78.01,2.74435623]
[1771955802461,2.68138059,78.076,78.014,3.69383402]
[1771955802660,2.68138059,78.076,78.015,2.74435623]
[1771955803873,2.68138059,78.076,78.017,2.74435623]
[1771955804610,2.68138059,78.076,78.016,56.74143155]
[1771955804611,2.68138059,78.074,78.019,2.74435623]
[1771955806862,2.68138059,78.072,78.021,2.74435623]
[1771955808972,2.68138059,78.072,78.024,2.74435623]
[1771955809169,2.68138059,78.072,78.026,2.74435623]
[1771955811968,2.68138059,78.072,78.028,2.74435623]
[1771955812857,2.68138059,78.072,78.027,44.85626769]
[1771955812858,2.68138059,78.072,78.03,2.74435623]
[1771955818678,2.68138059,78.072,78.032,2.98199779]
[1771955819460,2.9284146,78.101,78.032,2.98199779]
[1771955819681,2.9284146,78.101,78.034,2.98199779]
[1771955819873,2.9284146,78.099,78.034,2.98199779]
[1771955820285,32.00961483,78.102,78.034,2.98199779]
[1771955820286,2.9284146,78.089,78.034,2.98199779]
[1771955820670,2.9284146,78.087,78.036,2.98199779]
[1771955822782,2.9284146,78.085,78.038,2.98199779]
[1771955822981,2.9284146,78.085,78.037,44.85051961]
[1771955822982,2.9284146,78.085,78.04,2.98199779]
[1771955825701,5.5604886,78.08,78.028,2.98199779]
[1771955825905,2.9284146,78.079,78.028,2.98199779]
[1771955829503,2.9284146,78.079,78.025,32.04078302]
[1771955829504,2.9284146,78.069,78.029,12.81574799]
[1771955833307,2.9284146,78.069,78.022,56.74143155]
[1771955833308,2.9284146,78.067,78.027,2.98199779]
[1771955836100,2.9284146,78.065,78.029,2.98199779]
[1771955838421,2.9284146,78.065,78.031,2.98199779]
[1771955839126,2.9284146,78.065,78.032,2.98199779]
[1771955840822,2.9284146,78.071,78.032,2.98199779]
[1771955841029,2.9284146,78.085,78.034,2.98199779]
[1771955842629,2.9284146,78.085,78.036,2.98199779]
[1771955842630,2.9284146,78.084,78.036,2.98199779]
[1771955845722,3.0792865,78.083,78.038,3.08717202]
[1771955847012,3.0792865,78.083,78.039,44.84937017]
[1771955847333,3.0792865,78.083,78.04,3.08717202]
[1771955847916,3.0792865,78.083,78.041,56.74143155]
[1771955848116,3.0792865,78.083,78.042,3.08717202]
[1771955851309,3.0792865,78.083,78.044,3.08717202]
[1771955851833,3.0792865,78.081,78.044,3.08717202]
[1771955853722,3.0792865,78.081,78.047,3.08717202]
[1771955855034,3.0792865,78.081,78.049,3.08717202]
[1771955857334,3.0792865,78.081,78.051,3.08717202]
[1771955859541,3.0792865,78.081,78.052,44.84190026]
[1771955859724,3.0792865,78.081,78.053,3.08717202]
[1771955861722,3.0792865,78.081,78.054,44.84075127]
[1771955861933,3.0792865,78.095,78.055,3.08717202]
[1771955862638,5.75163888,78.11,78.057,3.08717202]
[1771955862639,3.0792865,78.106,78.057,3.08717202]
[1771955862839,12.79672403,78.145,78.058,3.08717202]
[1771955863024,3.0792865,78.144,78.062,3.08717202]
[1771955863220,3.0792865,78.109,78.062,3.08717202]
[1771955863938,3.0792865,78.109,78.064,3.08717202]
[1771955864339,3.0792865,78.115,78.064,3.08717202]
[1771955864515,3.0792865,78.115,78.067,3.08717202]
[1771955866032,3.0792865,78.14,78.072,3.08717202]
[1771955866944,3.0792865,78.14,78.077,3.08717202]
[1771955867423,3.0792865,78.14,78.081,3.08717202]
[1771955868324,3.0792865,78.14,78.077,16.68947557]
[1771955868325,3.0792865,78.14,78.087,3.08717202]
[1771955869736,3.0792865,78.152,78.091,6.78100604]
[1771955870041,3.0792865,78.152,78.095,3.08717202]
[1771955871342,3.0792865,78.151,78.096,108.84040155]
[1771955871549,3.0792865,78.151,78.097,3.08717202]
[1771955873456,0.2,78.17,78.098,108.83761426]
[1771955873652,0.2,78.2,78.182,2.521]
[1771955873951,12.77951488,78.251,78.182,6.69219161]
[1771955874161,31.94516784,78.26,78.183,3.08717202]
[1771955874162,3.0792865,78.219,78.183,3.08717202]
[1771955874450,3.0792865,78.219,78.184,3.08717202]
[1771955875049,5.55163888,78.2,78.182,0.41769933]
[1771955875347,0.84660288,78.199,78.163,3.00628149]
[1771955877226,0.84660288,78.199,78.165,3.00628149]
[1771955878451,0.84660288,78.199,78.167,3.00628149]
[1771955880734,0.46599221,78.189,78.131,3.00628149]
[1771955882752,0.46599221,78.189,78.136,3.00628149]
[1771955884433,0.49415414,78.195,78.136,3.00628149]
[1771955884947,0.49415414,78.195,78.138,3.00628149]
[1771955887546,0.49415414,78.195,78.14,3.00628149]
[1771955888852,0.49415414,78.195,78.141,56.74143155]
[1771955889042,0.49415414,78.195,78.142,3.00628149]
[1771955891446,0.49415414,78.195,78.144,111.77982775]
[1771955891646,0.49415414,78.195,78.144,108.77354626]
[1771955891846,0.49415414,78.195,78.145,3.00628149]
[1771955893347,0.49415414,78.195,78.147,3.00628149]
[1771955894956,0.49415414,78.195,78.149,3.00628149]
[1771955895966,0.57123304,78.179,78.15,44.78566858]
[1771955896138,0.57123304,78.179,78.151,3.00628149]
[1771955897254,0.57719245,78.169,78.152,56.74143155]
[1771955897459,0.57719245,78.169,78.152,56.16521169]
[1771955898160,0.57719245,78.169,78.153,12.79541412]
[1771955898545,0.57719245,78.169,78.152,56.16521169]
[1771955898744,0.57719245,78.169,78.152,68.96072364]
[1771955900665,0.57719245,78.169,78.144,3.21524467]
[1771955902341,0.03184551,78.178,78.144,3.21524467]
[1771955902763,0.03184551,78.178,78.146,3.21524467]
[1771955903749,5.55163888,78.17,78.146,3.21524467]
[1771955903961,0.04952979,78.169,78.146,3.21524467]
[1771955904556,0.04952979,78.169,78.145,12.79672403]
[1771955904870,0.05527906,78.159,78.135,3.21524467]
[1771955905174,0.05527906,78.159,78.125,3.21524467]
[1771955909181,0.05527906,78.159,78.132,3.21524467]
[1771955912968,0.05527906,78.159,78.133,16.01393408]
[1771955913370,0.10446484,78.166,78.14,5.54196304]
[1771955913580,0.10446484,78.166,78.141,3.21524467]
[1771955915266,0.10446484,78.166,78.142,12.79721532]
[1771955915456,0.10446484,78.166,78.138,12.79781207]
[1771955915661,0.10446484,78.166,78.138,16.01305674]
[1771955916980,0.10446484,78.166,78.139,3.21524467]
[1771955920976,0.10446484,78.166,78.141,3.21524467]
[1771955922188,0.10446484,78.166,78.142,16.01245999]
[1771955922487,0.10446484,78.166,78.139,12.79769358]
[1771955922683,0.10446484,78.166,78.14,3.21524467]
[1771955924488,0.10446484,78.166,78.135,3.21524467]
[1771955926979,0.10446484,78.166,78.137,3.21524467]
[1771955927474,0.17163023,78.159,78.131,3.21524467]
[1771955927680,0.17163023,78.159,78.126,16.01501439]
[1771955927871,0.17597275,78.149,78.123,12.8003251]
[1771955928070,0.17597275,78.149,78.116,12.80147472]
[1771955928472,0.17597275,78.149,78.116,16.01671939]
[1771955928687,0.17597275,78.149,78.117,3.21524467]
[1771955929078,0.18031294,78.139,78.111,3.21524467]
[1771955931473,0.18890957,78.129,78.099,16.01941328]
[1771955932089,0.18890957,78.129,78.1,3.21524467]
[1771955933184,0.19722332,78.145,78.111,3.21524467]
[1771955933688,12.79688779,78.144,78.113,3.21524467]
[1771955933886,0.20135318,78.143,78.113,3.21524467]
[1771955938901,0.22150492,78.141,78.115,3.21524467]
[1771955942300,0.22150492,78.141,78.117,3.21524467]
[1771955942504,25.64213027,78.237,78.117,3.21524467]
[1771955942680,0.23368784,78.149,78.121,3.21524467]
[1771955943596,0.23368784,78.149,78.114,3.21524467]
[1771955943805,0.23667395,78.119,78.099,12.80426125]
[1771955944098,0.23667395,78.119,78.061,3.69383402]
[1771955944099,0.23667395,78.109,78.072,3.21524467]
[1771955944402,0.23667395,78.107,78.074,3.21524467]
[1771955946400,0.2425968,78.105,78.076,3.21524467]
[1771955948399,0.2425968,78.105,78.073,32.02131338]
[1771955948602,0.24838907,78.089,78.06,0.1]
[1771955949307,0.24838907,78.089,78.062,3.21524467]
[1771955950288,12.80545165,78.092,78.064,3.21524467]
[1771955953000,0.26225706,78.092,78.064,3.21524467]
[1771955953810,0.26225706,78.092,78.066,3.21524467]
[1771955957599,0.27273188,78.089,78.066,3.21524467]
[1771955958494,5.54149741,78.08,78.06,3.31524467]
[1771955958696,0.27525314,78.079,78.06,0.1]
[1771955958895,0.27525314,78.079,78.061,12.81049435]
[1771955959990,0.27525314,78.079,78.06,0.1]
[1771955961413,0.28277243,78.077,78.06,0.1]
[1771955961714,0.28277243,78.069,78.052,12.81192254]
[1771955962519,0.28277243,78.069,78.052,16.07716721]
[1771955965200,0.28277243,78.069,78.053,3.28864755]
[1771955965622,13.00603741,78.074,78.053,3.28864755]
[1771955965801,0.2000392,78.073,78.053,3.28864755]
[1771955966003,0.2000392,78.069,78.047,3.28864755]
[1771955967917,3.69383402,78.1,78.021,62.6]
[1771955967918,0.20472666,78.079,78.048,12.81262812]
[1771955968121,0.20472666,78.079,78.049,3.28864755]
[1771955968724,0.20472666,78.069,78.049,3.28864755]
[1771955969930,5.54149741,78.07,78.044,3.28864755]
[1771955969931,0.20933276,78.067,78.044,3.28864755]
[1771955972828,12.80967386,78.066,78.044,3.28864755]
[1771955973627,0.21603426,78.065,78.044,3.28864755]
[1771955973819,0.21603426,78.065,78.033,3.28864755]
[1771955974731,5.54149741,78.06,78.035,3.28864755]
[1771955975029,5.54149741,78.09,78.051,3.28864755]
[1771955975210,0.22040075,78.089,78.051,3.28864755]
[1771955976633,0.22253353,78.087,78.053,3.28864755]
[1771955979228,12.80639295,78.086,78.054,12.81164322]
[1771955979535,0.22868869,78.085,78.055,3.28864755]
[1771955981930,12.80672096,78.084,78.055,3.28864755]
[1771955982129,0.23469287,78.083,78.055,3.28864755]
[1771955984524,5.55371976,78.08,78.055,3.28864755]
[1771955984825,0.24054405,78.085,78.057,3.28864755]
[1771955985024,0.24054405,78.113,78.061,3.28864755]
[1771955985223,0.24054405,78.089,78.061,3.28864755]
[1771955988537,38.5,78.199,78.081,3.38831447]
[1771955988740,5.55371976,78.13,78.101,3.38831447]
[1771955990531,12.79892494,78.132,78.103,3.38831447]
[1771955994023,12.79892494,78.132,78.08,5.55371976]
[1771955994024,5.55371976,78.13,78.09,5.55371976]
[1771955994242,5.55371976,78.13,78.091,3.38831447]
[1771955995441,5.55371976,78.13,78.093,3.38831447]
[1771955998545,5.55371976,78.12,78.082,3.38831447]
[1771955999647,44.80344089,78.119,78.084,3.38831447]
[1771956000141,44.80344089,78.119,78.08,5.55371976]
[1771956000448,9.0546959,78.086,78.037,3.38831447]
[1771956000645,5.55371976,78.08,78.041,3.38831447]
[1771956001640,5.55371976,78.07,78.041,3.38831447]
[1771956002150,5.55371976,78.05,78.022,3.38831447]
[1771956002533,5.55371976,78.06,78.022,3.38831447]
[1771956004050,5.55371976,78.05,78.022,3.38831447]
[1771956004437,5.55371976,78.04,78.02,0.1]
[1771956004638,5.55371976,78.05,78.02,0.1]
[1771956005849,5.55371976,78.05,78.02,3.48831447]
[1771956006250,12.81246396,78.049,78.022,3.38831447]
[1771956007235,44.84362387,78.049,78.022,3.38831447]
[1771956010956,12.8109867,78.058,78.031,3.38831447]
[1771956011156,12.8109867,78.058,78.041,3.38831447]
[1771956011460,3.69383402,78.076,78.041,3.38831447]
[1771956011762,44.82639378,78.079,78.041,3.38831447]
[1771956011946,5.55371976,78.07,78.041,3.38831447]
[1771956012456,3.69383402,78.076,78.043,3.38831447]
[1771956013758,5.55371976,78.07,78.043,3.38831447]
[1771956014859,12.80918162,78.069,78.043,3.38831447]
[1771956015063,44.83213567,78.069,78.043,3.38831447]
[1771956016769,0.02028726,78.068,78.043,3.38831447]
[1771956018467,0.02051035,78.068,78.043,3.38831447]
[1771956020674,44.83213567,78.069,78.043,3.38831447]
[1771956021076,0.02137965,78.068,78.043,3.38831447]
[1771956021871,0.02137965,78.068,78.037,12.81443342]
[1771956021872,0.02137965,78.068,78.037,3.38831447]
[1771956025879,12.80918162,78.069,78.041,3.38831447]
[1771956027484,12.80803319,78.076,78.051,3.38831447]
[1771956027888,0.02363745,78.082,78.051,3.38831447]
[1771956030282,12.80704899,78.082,78.051,3.38831447]
[1771956030466,0.02415386,78.081,78.051,3.38831447]
[1771956031373,0.02439094,78.079,78.051,3.38831447]
[1771956032372,0.02462241,78.081,78.051,3.38831447]
[1771956035263,12.80573697,78.09,78.06,5.55371976]
[1771956035469,6.70125889,78.11,78.081,3.38831447]
[1771956035671,0.0252733,78.122,78.091,3.38831447]
[1771956035991,0.02545513,78.135,78.091,3.38831447]
[1771956036190,5.36086188,78.139,78.092,3.40104204]
[1771956036377,5.55371976,78.13,78.092,3.40104204]
[1771956037486,44.79770635,78.129,78.094,3.40104204]
[1771956038190,3.69383402,78.126,78.094,3.40104204]
[1771956039690,12.8,78.125,78.101,3.40104204]
[1771956039882,12.8,78.125,78.111,3.40104204]
[1771956040093,12.79819801,78.136,78.111,3.40104204]
[1771956041788,3.69383402,78.146,78.111,3.40104204]
[1771956042409,5.54797648,78.14,78.111,3.40104204]
[1771956046189,12.79770665,78.139,78.113,3.40104204]
[1771956047910,12.79623278,78.148,78.121,3.40104204]
[1771956048109,3.69383402,78.156,78.121,3.40104204]
[1771956048285,3.69383402,78.156,78.123,3.40104204]
[1771956048481,5.54797648,78.15,78.123,3.40104204]
[1771956050289,44.78051151,78.159,78.125,3.40104204]
[1771956050290,12.79606904,78.149,78.125,3.40104204]
[1771956050811,12.79459556,78.158,78.125,3.40104204]
[1771956051116,12.79459556,78.158,78.131,3.40104204]
[1771956051307,12.79459556,78.158,78.133,3.40104204]
[1771956055618,5.54797648,78.15,78.133,3.40104204]
[1771956055792,12.79459556,78.158,78.133,3.40104204]
[1771956060998,3.69383402,78.164,78.133,3.40104204]
[1771956061196,0.2,78.17,78.141,3.40104204]
[1771956061398,12.79279509,78.169,78.151,3.40104204]
[1771956062408,0.2,78.17,78.151,3.40104204]
[1771956062615,12.78952282,78.189,78.161,3.30104204]
[1771956063024,12.98265226,78.189,78.161,3.30104204]
[1771956063527,0.2,78.2,78.181,3.20104204]
[1771956063709,12.78628881,78.209,78.19,5.54797648]
[1771956063911,12.78628881,78.209,78.18,5.54797648]
[1771956065123,0.72371681,78.212,78.18,5.54797648]
[1771956065316,0.72371681,78.209,78.18,5.54797648]
[1771956065625,0.72371681,78.209,78.181,3.13659618]
[1771956066302,12.78641571,78.208,78.181,3.13659618]
[1771956067902,6.27009756,78.21,78.181,3.13659618]
[1771956068315,0.72212108,78.209,78.181,3.13659618]
[1771956068519,13.50755591,78.214,78.181,3.13659618]
[1771956069221,0.72160582,78.209,78.181,3.13659618]
[1771956070004,12.78641571,78.208,78.181,3.13659618]
[1771956070200,0.72109435,78.207,78.181,3.13659618]
[1771956070403,5.54797648,78.2,78.172,3.13659618]
[1771956070607,0.72109435,78.199,78.172,3.13659618]
[1771956071825,5.54797648,78.2,78.172,3.13659618]
[1771956072123,12.78641571,78.208,78.174,3.13659618]
[1771956072331,12.78494444,78.217,78.191,3.13659618]
[1771956073516,12.78461754,78.219,78.18,5.54797648]
[1771956073720,0.2,78.22,78.2,5.54797648]
[1771956074105,12.98458942,78.22,78.19,5.54797648]
[1771956074306,3.20334653,78.219,78.19,5.54797648]
[1771956074511,0.2,78.22,78.19,5.54797648]
[1771956074711,0.2,78.22,78.2,5.54797648]
[1771956075212,0.2,78.22,78.19,5.54797648]
[1771956075731,0.2,78.22,78.193,3.13659618]
[1771956075913,12.78461754,78.219,78.193,3.13659618]
[1771956076530,3.20334653,78.218,78.193,3.13659618]
[1771956077719,3.20334653,78.216,78.193,3.13659618]
[1771956079314,3.20334653,78.214,78.193,3.13659618]
[1771956081405,12.7855983,78.213,78.193,3.13659618]
[1771956082620,3.40334653,78.22,78.194,3.13659618]
[1771956082831,3.20334653,78.219,78.194,3.13659618]
[1771956083520,12.78486561,78.218,78.194,3.13659618]
[1771956084328,0.2,78.22,78.196,3.25121135]
[1771956084520,12.78461754,78.219,78.196,3.25121135]
[1771956085519,0.2,78.22,78.203,3.35812107]
[1771956087035,0.2,78.22,78.205,3.35812107]
[1771956088319,0.2,78.22,78.207,3.35812107]
[1771956091713,0.2,78.22,78.201,3.35812107]
[1771956094141,3.19661285,78.218,78.192,3.35812107]
[1771956094637,12.78461754,78.219,78.192,3.35812107]
[1771956095420,15.98123039,78.219,78.194,3.35812107]
[1771956096934,12.78461754,78.219,78.194,3.35812107]
[1771956097329,15.98123039,78.219,78.194,3.35812107]
[1771956097740,3.19661285,78.216,78.194,3.35812107]
[1771956098246,15.98155729,78.217,78.194,3.35812107]
[1771956098430,3.19661285,78.216,78.194,3.35812107]
[1771956099548,12.78494444,78.217,78.194,3.35812107]
[1771956099844,12.78494444,78.217,78.196,3.35812107]
[1771956102627,0.2,78.22,78.201,3.35812107]
[1771956102823,0.2,78.22,78.197,12.78821438]
[1771956102824,1e-08,78.22,78.211,3.35812107]
[1771956103725,3.19661285,78.264,78.233,3.35812107]
[1771956103920,12.77645044,78.269,78.241,3.35812107]
[1771956104622,12.77645044,78.269,78.243,3.35812107]
[1771956106238,0.2,78.27,78.243,3.35812107]
[1771956106445,0.2,78.27,78.25,5.53413214]
[1771956106751,12.97635011,78.27,78.251,3.35812107]
[1771956107332,3.19661285,78.269,78.251,3.35812107]
[1771956110249,3.19661285,78.267,78.24,5.53413214]
[1771956110436,3.19661285,78.249,78.211,3.35812107]
[1771956110956,8.73074499,78.23,78.211,3.35812107]
[1771956111134,3.19661285,78.229,78.211,3.35812107]
[1771956111341,5.53413214,78.24,78.211,3.35812107]
[1771956111754,3.19661285,78.239,78.211,3.35812107]
[1771956113633,3.19661285,78.237,78.211,3.35812107]
[1771956114154,3.19661285,78.237,78.211,16.14403074]
[1771956114337,3.19661285,78.237,78.212,3.35812107]
[1771956115153,3.19661285,78.229,78.207,3.35812107]
[1771956115659,3.19661285,78.229,78.208,3.10956363]
[1771956117164,3.17077342,78.228,78.201,3.10956363]
[1771956117544,5.53413214,78.22,78.201,3.10956363]
[1771956118445,5.53413214,78.22,78.19,5.53413214]
[1771956118446,5.53413214,78.22,78.203,3.10956363]
[1771956118653,3.17077342,78.223,78.203,3.10956363]
[1771956119444,15.9537974,78.229,78.205,3.10956363]
[1771956121550,5.53413214,78.24,78.206,12.7867427]
[1771956121748,3.17077342,78.239,78.207,3.10956363]
[1771956122873,12.77995445,78.248,78.211,3.10956363]
[1771956123049,3.17077342,78.256,78.211,3.10956363]
[1771956123253,3.17077342,78.254,78.221,3.10956363]
[1771956125769,12.77645044,78.269,78.241,3.10956363]
[1771956125980,0.2,78.27,78.251,3.10956363]
[1771956126160,3.37077342,78.28,78.261,3.10956363]
[1771956126161,0.2,78.28,78.261,3.10956363]
[1771956126566,1e-08,78.28,78.261,3.10956363]
[1771956126771,12.77125614,78.301,78.271,3.10956363]
[1771956127075,3.37077342,78.32,78.291,3.10956363]
[1771956127255,3.17077342,78.309,78.27,5.53413214]
[1771956127657,15.94233016,78.299,78.271,12.77612397]
[1771956127853,3.17077342,78.305,78.27,5.53413214]
[1771956128061,12.76992427,78.309,78.28,5.53413214]
[1771956128366,15.94069769,78.309,78.28,5.53413214]
[1771956128563,12.76992427,78.309,78.28,5.53413214]
[1771956128780,5.73413214,78.32,78.29,5.53413214]
[1771956128781,0.2,78.32,78.29,5.53413214]
[1771956128968,0.2,78.32,78.3,5.53413214]
[1771956129174,0.2,78.32,78.301,3.10956363]
[1771956129470,0.2,78.33,78.311,3.10956363]
[1771956129977,0.2,78.33,78.28,5.53413214]
[1771956129978,0.2,78.34,78.321,3.10956363]
[1771956130565,12.9648872,78.34,78.321,3.10956363]
[1771956130776,0.2,78.34,78.321,3.10956363]
[1771956132280,12.76503401,78.339,78.321,3.10956363]
[1771956132475,0.12591,78.346,78.331,3.10956363]
[1771956132700,3.17077342,78.362,78.332,3.10956363]
[1771956132864,0.2,78.37,78.341,3.10956363]
[1771956133362,0.2,78.37,78.351,3.10956363]
[1771956134265,0.2,78.37,78.353,3.10956363]
[1771956135780,0.2,78.37,78.36,5.53413214]
[1771956135971,3.17077342,78.389,78.361,3.10956363]
[1771956136161,37.42220818,78.4,78.361,3.10956363]
[1771956136162,3.17077342,78.395,78.361,3.10956363]
[1771956136363,57.58,78.402,78.381,3.10956363]
[1771956136571,3.17077342,78.399,78.355,3.10956363]
[1771956136785,3.17077342,78.399,78.36,5.53413214]
[1771956137475,3.17077342,78.399,78.371,3.10956363]
[1771956138173,57.58,78.402,78.373,2.90956363]
[1771956138488,57.58,78.402,78.38,5.53413214]
[1771956139386,3.17077342,78.401,78.38,5.53413214]
[1771956139981,57.58,78.402,78.38,5.53413214]
[1771956140187,57.58,78.402,78.381,12.75818387]
[1771956140370,57.58,78.402,78.382,2.90956363]
[1771956141068,12.75419637,78.406,78.382,2.90956363]
[1771956141382,3.17077342,78.405,78.364,12.76096166]
[1771956141576,3.17077342,78.405,78.38,5.53413214]
[1771956142079,3.17077342,78.412,78.38,5.53413214]
[1771956142282,12.75331267,78.411,78.382,3.10956363]
[1771956142582,15.92393048,78.412,78.391,3.10956363]
[1771956142983,3.17077342,78.411,78.39,5.53413214]
[1771956144781,12.75347532,78.41,78.39,5.53413214]
[1771956145166,0.1,78.45,78.391,3.27617364]
[1771956145393,18.27637598,78.48,78.44,5.53413214]
[1771956145588,12.74534794,78.46,78.43,5.53413214]
[1771956145764,5.53413214,78.45,78.417,3.27617364]
[1771956145969,3.38559304,78.449,78.42,5.53413214]
[1771956146272,3.38559304,78.469,78.441,3.27617364]
[1771956146467,3.38559304,78.46,78.44,5.53413214]
[1771956146666,3.38559304,78.449,78.42,5.53413214]
[1771956146867,3.38559304,78.456,78.43,5.53413214]
[1771956147082,3.38559304,78.456,78.431,3.27617364]
[1771956147673,3.38559304,78.456,78.43,5.53413214]
[1771956148185,3.38559304,78.456,78.424,3.27617364]
[1771956148776,3.38559304,78.454,78.424,3.27617364]
[1771956149083,3.38559304,78.454,78.426,3.27617364]
[1771956149587,3.38559304,78.454,78.431,3.27617364]
[1771956150774,3.38559304,78.454,78.432,3.27617364]
[1771956151084,39.4268131,78.461,78.432,3.27617364]
[1771956151294,3.38559304,78.459,78.432,3.27617364]
[1771956152691,3.38559304,78.459,78.43,5.53413214]
[1771956152692,3.38559304,78.459,78.434,3.27617364]
[1771956153080,3.38559304,78.459,78.42,8.81030578]
[1771956153389,3.38559304,78.449,78.42,16.02800665]
[1771956153573,3.38559304,78.439,78.412,3.27617364]
[1771956154068,3.38559304,78.439,78.407,12.75386377]
[1771956154272,5.53413214,78.42,78.397,3.27617364]
[1771956154478,3.38559304,78.419,78.39,16.03290281]
[1771956154694,5.53413214,78.43,78.391,3.27617364]
[1771956154905,3.38559304,78.429,78.391,3.27617364]
[1771956155093,12.74876018,78.439,78.39,12.75672917]
[1771956155094,3.38559304,78.419,78.39,12.75672917]
[1771956155680,3.38559304,78.419,78.391,3.27617364]
[1771956157271,12.2926727,78.41,78.383,3.27617364]
[1771956158690,3.38559304,78.409,78.377,12.75883316]
[1771956159095,3.38559304,78.409,78.378,3.27617364]
[1771956159297,3.38559304,78.409,78.38,12.2926727]
[1771956159477,3.69383402,78.431,78.381,3.27617364]